[Event "*** Monthly 3|2 Blitz Masters"]
[Site "Chess.com"]
[Date "2014.11.25"]
[Round "5"]
[White "liczner"]
[Black "GMBenjaminBok"]
[Result "0-1"]
[WhiteElo "2416"]
[BlackElo "2605"]
[TimeControl "180+2"]
[EndTime "11:58:08 PST"]
[Termination "GMBenjaminBok won on time"]

1. e4 {[%clk 0:02:44.7]} 1... c5 {[%clk 0:02:58.9]} 2. Nf3 {[%clk 0:02:45.3]}
2... e6 {[%clk 0:03:00.1]} 3. d3 {[%clk 0:02:44.4]} 3... Nc6 {[%clk 0:02:58.8]}
4. g3 {[%clk 0:02:45.4]} 4... d5 {[%clk 0:02:59.2]} 5. Nbd2 {[%clk 0:02:45.8]}
5... g6 {[%clk 0:02:58.9]} 6. Bg2 {[%clk 0:02:46.2]} 6... Bg7 {[%clk 0:02:59.8]}
7. O-O {[%clk 0:02:47.6]} 7... Nge7 {[%clk 0:03:00.6]} 8. Re1 {[%clk 0:02:47.5]}
8... b6 {[%clk 0:02:58]} 9. Qe2 {[%clk 0:02:35.4]} 9... O-O {[%clk 0:02:51.4]}
10. e5 {[%clk 0:02:32.2]} 10... h6 {[%clk 0:02:47.2]} 11. h4 {[%clk 0:02:27.3]}
11... f6 {[%clk 0:02:42.9]} 12. exf6 {[%clk 0:02:26]} 12... Rxf6 {[%clk
0:02:43.8]} 13. Nf1 {[%clk 0:02:23]} 13... Qd6 {[%clk 0:02:31.7]} 14. Ne3 {[%clk
0:02:14.8]} 14... e5 {[%clk 0:02:26.5]} 15. c4 {[%clk 0:02:07.5]} 15... d4
{[%clk 0:02:22.7]} 16. Nd5 {[%clk 0:01:54.3]} 16... Bg4 {[%clk 0:02:02.4]} 17.
Nxf6+ {[%clk 0:01:37.6]} 17... Qxf6 {[%clk 0:01:57]} 18. Qe4 {[%clk 0:01:31]}
18... Bf5 {[%clk 0:01:57.6]} 19. Qe2 {[%clk 0:01:29.4]} 19... Bg4 {[%clk
0:01:52.9]} 20. Qe4 {[%clk 0:01:29.1]} 20... Bf5 {[%clk 0:01:47.8]} 21. Qe2
{[%clk 0:01:29.7]} 21... Rf8 {[%clk 0:01:38.9]} 22. Nd2 {[%clk 0:00:32]} 22...
Bxd3 {[%clk 0:01:38.6]} 23. Ne4 {[%clk 0:00:33.3]} 23... Bxe2 {[%clk 0:00:54.3]}
24. Nxf6+ {[%clk 0:00:34.1]} 24... Rxf6 {[%clk 0:00:54.3]} 25. Rxe2 {[%clk
0:00:36]} 25... Rd6 {[%clk 0:00:11.1]} 26. Be4 {[%clk 0:00:33.7]} 26... a6
{[%clk 0:00:12.2]} 27. Bd2 {[%clk 0:00:32]} 27... Nd8 {[%clk 0:00:09.8]} 28. Bd3
{[%clk 0:00:24.4]} 28... Nf7 {[%clk 0:00:09.8]} 29. b4 {[%clk 0:00:24.3]} 29...
Re6 {[%clk 0:00:09.6]} 30. bxc5 {[%clk 0:00:24]} 30... bxc5 {[%clk 0:00:10.8]}
31. Rb1 {[%clk 0:00:23.9]} 31... Nd6 {[%clk 0:00:08.8]} 32. f3 {[%clk
0:00:24.2]} 32... Kf7 {[%clk 0:00:07]} 33. Rb6 {[%clk 0:00:23]} 33... Ndf5
{[%clk 0:00:06.7]} 34. Rxe6 {[%clk 0:00:21.7]} 34... Kxe6 {[%clk 0:00:08.6]} 35.
Kg2 {[%clk 0:00:22.3]} 35... Nd6 {[%clk 0:00:09.5]} 36. f4 {[%clk 0:00:18.6]}
36... Nc6 {[%clk 0:00:05.9]} 37. fxe5 {[%clk 0:00:18.4]} 37... Nxe5 {[%clk
0:00:06.5]} 0-1

[Event "*** Monthly 3|2 Blitz Masters"]
[Site "Chess.com"]
[Date "2014.11.25"]
[Round "5"]
[White "oggy1984"]
[Black "bsmail"]
[Result "0-1"]
[WhiteElo "2208"]
[BlackElo "2107"]
[TimeControl "180+2"]
[EndTime "11:58:12 PST"]
[Termination "bsmail won on time"]

1. e4 {[%clk 0:03:00]} 1... c5 {[%clk 0:02:58]} 2. Nf3 {[%clk 0:02:58.4]} 2...
d6 {[%clk 0:02:58.9]} 3. d4 {[%clk 0:02:59.4]} 3... cxd4 {[%clk 0:03:00.3]} 4.
Nxd4 {[%clk 0:03:01.3]} 4... Nf6 {[%clk 0:03:02]} 5. Nc3 {[%clk 0:03:02.3]} 5...
a6 {[%clk 0:03:03.3]} 6. f3 {[%clk 0:03:01.8]} 6... Nc6 {[%clk 0:03:00.7]} 7.
Be3 {[%clk 0:03:02.5]} 7... e5 {[%clk 0:03:01.3]} 8. Nb3 {[%clk 0:03:03]} 8...
Be6 {[%clk 0:03:01.9]} 9. Qd2 {[%clk 0:03:03.9]} 9... d5 {[%clk 0:02:38]} 10.
exd5 {[%clk 0:03:02.2]} 10... Nxd5 {[%clk 0:02:38.5]} 11. Nxd5 {[%clk
0:03:02.5]} 11... Qxd5 {[%clk 0:02:38.7]} 12. Qxd5 {[%clk 0:02:59.8]} 12... Bxd5
{[%clk 0:02:40.2]} 13. O-O-O {[%clk 0:03:00.6]} 13... O-O-O {[%clk 0:02:39.5]}
14. Bb6 {[%clk 0:02:55.6]} 14... Rd7 {[%clk 0:02:36.8]} 15. Nc5 {[%clk
0:02:54.1]} 15... Bxc5 {[%clk 0:02:38]} 16. Bxc5 {[%clk 0:02:54.8]} 16... Kc7
{[%clk 0:02:35.1]} 17. Be2 {[%clk 0:02:51.9]} 17... Rhd8 {[%clk 0:02:34.6]} 18.
c4 {[%clk 0:02:24.7]} 18... Be6 {[%clk 0:02:30.3]} 19. Rxd7+ {[%clk 0:02:25.3]}
19... Rxd7 {[%clk 0:02:31.4]} 20. Rd1 {[%clk 0:02:25.3]} 20... Nd4 {[%clk
0:02:31]} 21. Bf1 {[%clk 0:02:23.3]} 21... b6 {[%clk 0:02:26.9]} 22. Bf8 {[%clk
0:02:21.6]} 22... f6 {[%clk 0:02:21.9]} 23. b3 {[%clk 0:02:22]} 23... Rf7 {[%clk
0:02:18.1]} 24. Ba3 {[%clk 0:02:20.8]} 24... Rd7 {[%clk 0:02:18]} 25. Bd3 {[%clk
0:02:11.5]} 25... h5 {[%clk 0:02:15.4]} 26. Bf8 {[%clk 0:02:04.4]} 26... g5
{[%clk 0:02:08]} 27. Kb2 {[%clk 0:01:53.4]} 27... h4 {[%clk 0:02:03.6]} 28. Kc1
{[%clk 0:01:44.6]} 28... h3 {[%clk 0:02:00.8]} 29. gxh3 {[%clk 0:01:20.7]} 29...
Nxf3 {[%clk 0:02:00.3]} 30. Be4 {[%clk 0:01:21.3]} 30... Rxd1+ {[%clk
0:01:55.6]} 31. Kxd1 {[%clk 0:01:23.2]} 31... Nxh2 {[%clk 0:01:56.5]} 32. Bg7
{[%clk 0:01:24]} 32... Bxh3 {[%clk 0:01:40.5]} 33. Bxf6 {[%clk 0:01:23.7]} 33...
Ng4 {[%clk 0:01:41.7]} 34. Bxg5 {[%clk 0:00:37.2]} 34... Nf2+ {[%clk 0:01:41.8]}
35. Ke2 {[%clk 0:00:38.1]} 35... Nxe4 {[%clk 0:01:43.1]} 36. Be7 {[%clk
0:00:35.7]} 36... Nc3+ {[%clk 0:01:37.3]} 37. Kd2 {[%clk 0:00:22.8]} 37... Nxa2
{[%clk 0:01:38.3]} 38. Kc2 {[%clk 0:00:09.6]} 38... a5 {[%clk 0:01:39.1]} 39.
Bf6 {[%clk 0:00:07.8]} 39... Kd6 {[%clk 0:01:40.2]} 40. Bd8 {[%clk 0:00:06.6]}
40... Nb4+ {[%clk 0:01:40.9]} 41. Kc3 {[%clk 0:00:06.6]} 41... Kc6 {[%clk
0:01:39.9]} 42. Bf6 {[%clk 0:00:05.7]} 42... e4 {[%clk 0:01:41.2]} 43. Bg5
{[%clk 0:00:05.9]} 43... Bf5 {[%clk 0:01:39.7]} 44. Be3 {[%clk 0:00:06]} 44...
Na6 {[%clk 0:01:38.2]} 45. Bd4 {[%clk 0:00:06]} 45... Nc5 {[%clk 0:01:39.2]} 46.
b4 {[%clk 0:00:05.8]} 46... axb4+ {[%clk 0:01:30.7]} 47. Kxb4 {[%clk 0:00:07.7]}
47... Na6+ {[%clk 0:01:21.5]} 48. Kc3 {[%clk 0:00:08]} 48... Nc7 {[%clk
0:01:22.6]} 49. Be3 {[%clk 0:00:06.9]} 49... Ne6 {[%clk 0:01:22.8]} 50. Kb4
{[%clk 0:00:07.9]} 50... Nc5 {[%clk 0:01:22.8]} 51. Kc3 {[%clk 0:00:07.4]} 51...
Kd6 {[%clk 0:01:22.8]} 52. Kb4 {[%clk 0:00:05.2]} 52... Ke5 {[%clk 0:01:23.1]}
53. Kb5 {[%clk 0:00:06.3]} 53... Nd7 {[%clk 0:01:16.8]} 54. Kc6 {[%clk
0:00:05.5]} 54... Be6 {[%clk 0:01:13.6]} 55. Kc7 {[%clk 0:00:03.7]} 55... Kf5
{[%clk 0:01:12.8]} 0-1

[Event "*** Monthly 3|2 Blitz Masters"]
[Site "Chess.com"]
[Date "2014.11.25"]
[Round "5"]
[White "vovkcoach"]
[Black "jcibarra"]
[Result "0-1"]
[WhiteElo "2482"]
[BlackElo "2478"]
[TimeControl "180+2"]
[EndTime "11:58:42 PST"]
[Termination "jcibarra won by resignation"]

1. e4 {[%clk 0:03:00]} 1... e5 {[%clk 0:02:58.5]} 2. Nf3 {[%clk 0:03:00.6]} 2...
d6 {[%clk 0:02:59.3]} 3. d4 {[%clk 0:03:00.6]} 3... exd4 {[%clk 0:02:53.4]} 4.
Qxd4 {[%clk 0:03:02.5]} 4... a6 {[%clk 0:02:52.6]} 5. Bg5 {[%clk 0:03:00.1]}
5... Nc6 {[%clk 0:02:53]} 6. Qd2 {[%clk 0:03:00.5]} 6... Nf6 {[%clk 0:02:53.5]}
7. Nc3 {[%clk 0:03:01.4]} 7... Be7 {[%clk 0:02:54.2]} 8. O-O-O {[%clk
0:03:02.5]} 8... Be6 {[%clk 0:02:53.5]} 9. Bd3 {[%clk 0:02:52.6]} 9... b5 {[%clk
0:02:50.7]} 10. Rhe1 {[%clk 0:02:51.8]} 10... O-O {[%clk 0:02:48]} 11. Kb1
{[%clk 0:02:35.9]} 11... Ne5 {[%clk 0:02:38.2]} 12. Nd4 {[%clk 0:02:32.7]} 12...
b4 {[%clk 0:02:33]} 13. Nce2 {[%clk 0:02:23.2]} 13... Nfg4 {[%clk 0:01:47.9]}
14. Nxe6 {[%clk 0:02:12.5]} 14... fxe6 {[%clk 0:01:46.7]} 15. Bxe7 {[%clk
0:02:13.1]} 15... Qxe7 {[%clk 0:01:47.2]} 16. f3 {[%clk 0:02:10]} 16... Nf2
{[%clk 0:01:33.1]} 17. Rc1 {[%clk 0:02:09.8]} 17... c5 {[%clk 0:01:33.3]} 18.
Ng3 {[%clk 0:02:00.3]} 18... Nfxd3 {[%clk 0:01:32.6]} 19. cxd3 {[%clk
0:02:02.2]} 19... Nc6 {[%clk 0:01:32.8]} 20. Ne2 {[%clk 0:02:00.7]} 20... e5
{[%clk 0:01:14.4]} 21. Ng3 {[%clk 0:01:52.2]} 21... Nd4 {[%clk 0:01:12.6]} 22.
Ne2 {[%clk 0:01:53]} 22... Ne6 {[%clk 0:01:12.4]} 23. Ng3 {[%clk 0:01:52.6]}
23... g6 {[%clk 0:01:08.7]} 24. Nf1 {[%clk 0:01:51.5]} 24... a5 {[%clk
0:01:07.1]} 25. Ne3 {[%clk 0:01:52.4]} 25... Qg5 {[%clk 0:01:07.7]} 26. Qd1
{[%clk 0:01:50.7]} 26... Nd4 {[%clk 0:01:07.1]} 27. Qa4 {[%clk 0:01:45.8]} 27...
Rf7 {[%clk 0:01:03]} 28. Rcd1 {[%clk 0:01:18.3]} 28... Kg7 {[%clk 0:01:03.2]}
29. Rd2 {[%clk 0:01:18.8]} 29... Qh4 {[%clk 0:00:59.7]} 30. Red1 {[%clk
0:01:09.4]} 30... Qxh2 {[%clk 0:00:57.2]} 31. Nc4 {[%clk 0:01:10.4]} 31... Ra6
{[%clk 0:00:51.8]} 32. Qe8 {[%clk 0:01:06.1]} 32... Qh4 {[%clk 0:00:49.1]} 33.
Qc8 {[%clk 0:01:01]} 33... Rc6 {[%clk 0:00:45.3]} 34. Qa8 {[%clk 0:01:00.6]}
34... a4 {[%clk 0:00:44.5]} 35. Qxa4 {[%clk 0:00:57.7]} 35... Qd8 {[%clk
0:00:42.8]} 36. Rh1 {[%clk 0:00:55.4]} 36... Qc8 {[%clk 0:00:42.3]} 37. Qd1
{[%clk 0:00:54.8]} 37... Ra6 {[%clk 0:00:41.6]} 38. Qe1 {[%clk 0:00:49.4]} 38...
Rfa7 {[%clk 0:00:41.1]} 39. Qh4 {[%clk 0:00:44.8]} 39... Kg8 {[%clk 0:00:41.1]}
40. b3 {[%clk 0:00:30]} 40... Nb5 {[%clk 0:00:41]} 41. Kc1 {[%clk 0:00:21.9]}
41... Nc3 {[%clk 0:00:37.7]} 42. Rc2 {[%clk 0:00:20.1]} 42... Qd7 {[%clk
0:00:35.1]} 43. Kd2 {[%clk 0:00:10]} 43... Rxa2 {[%clk 0:00:33.6]} 44. Rc1
{[%clk 0:00:07.6]} 44... Nb5 {[%clk 0:00:32.3]} 45. Qf6 {[%clk 0:00:07.4]} 45...
Nd4 {[%clk 0:00:30.8]} 46. Rxa2 {[%clk 0:00:08.1]} 46... Nxb3+ {[%clk
0:00:27.2]} 47. Kd1 {[%clk 0:00:10]} 47... Rxa2 {[%clk 0:00:27.3]} 48. Rb1
{[%clk 0:00:08.9]} 48... Nd4 {[%clk 0:00:25.3]} 49. Qxd6 {[%clk 0:00:06.8]}
49... Qxd6 {[%clk 0:00:18.4]} 50. Nxd6 {[%clk 0:00:08.7]} 50... Rxg2 {[%clk
0:00:16.9]} 51. Kc1 {[%clk 0:00:08.3]} 51... Ne2+ {[%clk 0:00:16]} 0-1

[Event "*** Monthly 3|2 Blitz Masters"]
[Site "Chess.com"]
[Date "2014.11.25"]
[Round "5"]
[White "FrankieJay"]
[Black "MoreChessJulia"]
[Result "1/2-1/2"]
[WhiteElo "2182"]
[BlackElo "1887"]
[TimeControl "180+2"]
[EndTime "11:59:23 PST"]
[Termination "Game drawn by stalemate"]

1. c4 {[%clk 0:03:00]} 1... e5 {[%clk 0:02:56.6]} 2. Nc3 {[%clk 0:03:00.7]} 2...
Nc6 {[%clk 0:02:56.5]} 3. g3 {[%clk 0:03:01]} 3... g6 {[%clk 0:02:56.7]} 4. Bg2
{[%clk 0:03:02.4]} 4... Bg7 {[%clk 0:02:56.9]} 5. d3 {[%clk 0:03:00.5]} 5... d6
{[%clk 0:02:57.1]} 6. Rb1 {[%clk 0:02:58.4]} 6... a5 {[%clk 0:02:56.6]} 7. a3
{[%clk 0:02:59.5]} 7... f5 {[%clk 0:02:56.4]} 8. e3 {[%clk 0:03:00.5]} 8... h5
{[%clk 0:02:55.2]} 9. h4 {[%clk 0:02:56.5]} 9... Nh6 {[%clk 0:02:54.2]} 10. Nge2
{[%clk 0:02:56.7]} 10... O-O {[%clk 0:02:51.7]} 11. O-O {[%clk 0:02:57.3]} 11...
Be6 {[%clk 0:02:51.7]} 12. Nd5 {[%clk 0:02:55.6]} 12... Ra7 {[%clk 0:02:44.7]}
13. b4 {[%clk 0:02:55.7]} 13... axb4 {[%clk 0:02:44]} 14. axb4 {[%clk
0:02:57.6]} 14... Ne7 {[%clk 0:02:44]} 15. Bb2 {[%clk 0:02:50.3]} 15... c6
{[%clk 0:02:43.1]} 16. Nxe7+ {[%clk 0:02:47.9]} 16... Qxe7 {[%clk 0:02:42.9]}
17. Qc2 {[%clk 0:02:44.1]} 17... g5 {[%clk 0:02:40.7]} 18. hxg5 {[%clk
0:02:39.5]} 18... Qxg5 {[%clk 0:02:40.8]} 19. f4 {[%clk 0:02:25.4]} 19... Qg6
{[%clk 0:02:39.3]} 20. Ra1 {[%clk 0:02:00.2]} 20... Rfa8 {[%clk 0:02:33.9]} 21.
Rxa7 {[%clk 0:02:00.1]} 21... Rxa7 {[%clk 0:02:33.9]} 22. Ra1 {[%clk 0:01:57.8]}
22... Rxa1+ {[%clk 0:02:33.5]} 23. Bxa1 {[%clk 0:01:59.7]} 23... Ng4 {[%clk
0:02:33.3]} 24. Qd2 {[%clk 0:02:00]} 24... exf4 {[%clk 0:02:33]} 25. Bxg7 {[%clk
0:02:00.6]} 25... fxe3 {[%clk 0:02:32.9]} 26. Qb2 {[%clk 0:02:00.6]} 26... Qxg7
{[%clk 0:02:32.9]} 27. Qxg7+ {[%clk 0:01:38.4]} 27... Kxg7 {[%clk 0:02:32.8]}
28. b5 {[%clk 0:01:40.3]} 28... Nf2 {[%clk 0:02:26.3]} 29. Nf4 {[%clk 0:01:36]}
29... Bd7 {[%clk 0:02:12]} 30. Nxh5+ {[%clk 0:01:28.7]} 30... Kh6 {[%clk
0:02:11.5]} 31. Nf6 {[%clk 0:01:25.7]} 31... Be6 {[%clk 0:02:02.9]} 32. bxc6
{[%clk 0:01:04.5]} 32... bxc6 {[%clk 0:02:02.8]} 33. Kf1 {[%clk 0:00:57.9]}
33... Nxd3 {[%clk 0:02:00.6]} 34. Ke2 {[%clk 0:00:59.2]} 34... Bxc4 {[%clk
0:01:59.5]} 35. Kxe3 {[%clk 0:01:00.3]} 35... d5 {[%clk 0:01:59.2]} 36. Kd4
{[%clk 0:00:56.3]} 36... Ne1 {[%clk 0:01:55.3]} 37. Bh3 {[%clk 0:00:53]} 37...
Kg5 {[%clk 0:01:55.1]} 38. Nd7 {[%clk 0:00:38.9]} 38... Nf3+ {[%clk 0:01:53.3]}
39. Kc5 {[%clk 0:00:40.2]} 39... Nd2 {[%clk 0:01:44]} 40. Kxc6 {[%clk 0:00:39]}
40... Ne4 {[%clk 0:01:44]} 41. Ne5 {[%clk 0:00:26.2]} 41... Nxg3 {[%clk
0:01:43.9]} 42. Kc5 {[%clk 0:00:24.7]} 42... Bb3 {[%clk 0:01:42.8]} 43. Bg2
{[%clk 0:00:22.2]} 43... Ne4+ {[%clk 0:01:41.2]} 44. Kd4 {[%clk 0:00:23.4]}
44... Kf4 {[%clk 0:01:41.2]} 45. Nd3+ {[%clk 0:00:18.9]} 45... Kg3 {[%clk
0:01:40.3]} 46. Bf1 {[%clk 0:00:19.9]} 46... f4 {[%clk 0:01:40.4]} 47. Ne5
{[%clk 0:00:18]} 47... f3 {[%clk 0:01:40.2]} 48. Nxf3 {[%clk 0:00:17.1]} 48...
Kxf3 {[%clk 0:01:40.4]} 49. Bb5 {[%clk 0:00:18.6]} 49... Kf4 {[%clk 0:01:31.6]}
50. Bc6 {[%clk 0:00:19.3]} 50... Nf6 {[%clk 0:01:32]} 51. Bb7 {[%clk 0:00:20]}
51... Kf5 {[%clk 0:01:30]} 52. Bc6 {[%clk 0:00:21.4]} 52... Ke6 {[%clk
0:01:30.3]} 53. Bb7 {[%clk 0:00:22.6]} 53... Kd6 {[%clk 0:01:30.7]} 54. Ba8
{[%clk 0:00:23.7]} 54... Ba4 {[%clk 0:01:31.2]} 55. Bxd5 {[%clk 0:00:23]} 55...
Nxd5 {[%clk 0:01:31.6]} 56. Kd3 {[%clk 0:00:23.6]} 56... Ke5 {[%clk 0:01:31]}
57. Kc4 {[%clk 0:00:23.4]} 57... Bd7 {[%clk 0:01:31.1]} 58. Kd3 {[%clk
0:00:25.3]} 58... Bb5+ {[%clk 0:01:31.2]} 59. Kc2 {[%clk 0:00:26.5]} 59... Bc4
{[%clk 0:01:30.6]} 60. Kb2 {[%clk 0:00:27.9]} 60... Kd4 {[%clk 0:01:30.6]} 61.
Ka1 {[%clk 0:00:29.5]} 61... Kc3 {[%clk 0:01:30.1]} 62. Kb1 {[%clk 0:00:30.9]}
62... Ne3 {[%clk 0:01:24.1]} 63. Ka1 {[%clk 0:00:31.8]} 63... Bb3 {[%clk
0:01:22.5]} 64. Kb1 {[%clk 0:00:33]} 64... Nc4 {[%clk 0:01:22]} 65. Ka1 {[%clk
0:00:33.9]} 65... Nd6 {[%clk 0:01:18.9]} 66. Kb1 {[%clk 0:00:35.2]} 66... Ne4
{[%clk 0:01:17.3]} 67. Ka1 {[%clk 0:00:36.6]} 67... Bf7 {[%clk 0:01:07.7]} 68.
Kb1 {[%clk 0:00:37.7]} 68... Be6 {[%clk 0:01:08.3]} 69. Ka1 {[%clk 0:00:38.4]}
69... Bb3 {[%clk 0:01:08.5]} 70. Kb1 {[%clk 0:00:39.3]} 70... Nd2+ {[%clk
0:01:08.7]} 71. Ka1 {[%clk 0:00:39.8]} 71... Nc4 {[%clk 0:01:07.5]} 72. Kb1
{[%clk 0:00:40.4]} 72... Na3+ {[%clk 0:01:07.5]} 73. Ka1 {[%clk 0:00:40.7]}
73... Nc2+ {[%clk 0:01:06.2]} 74. Kb1 {[%clk 0:00:41.5]} 74... Ba4 {[%clk
0:01:04]} 75. Ka2 {[%clk 0:00:41.9]} 75... Bb3+ {[%clk 0:00:58.6]} 76. Kb1
{[%clk 0:00:43]} 76... Ne1 {[%clk 0:00:58.9]} 77. Ka1 {[%clk 0:00:43.4]} 77...
Nd3 {[%clk 0:00:59.7]} 78. Kb1 {[%clk 0:00:44.8]} 78... Bc2+ {[%clk 0:01:00.4]}
79. Ka1 {[%clk 0:00:45.8]} 79... Nc5 {[%clk 0:00:58.8]} 80. Ka2 {[%clk
0:00:46.2]} 80... Nb3 {[%clk 0:00:57.2]} 81. Ka3 {[%clk 0:00:47.3]} 81... Nc1
{[%clk 0:00:56.3]} 1/2-1/2

[Event "*** Monthly 3|2 Blitz Masters"]
[Site "Chess.com"]
[Date "2014.11.25"]
[Round "5"]
[White "162a54f5d"]
[Black "gumersindo"]
[Result "1/2-1/2"]
[WhiteElo "2275"]
[BlackElo "2050"]
[TimeControl "180+2"]
[EndTime "12:00:24 PST"]
[Termination "Game drawn - insufficient material"]

1. d4 {[%clk 0:03:00]} 1... d5 {[%clk 0:02:58.7]} 2. c4 {[%clk 0:03:00.7]} 2...
c6 {[%clk 0:02:59.5]} 3. Nf3 {[%clk 0:03:01.3]} 3... Nf6 {[%clk 0:02:59.9]} 4.
e3 {[%clk 0:03:00.7]} 4... a6 {[%clk 0:02:59.8]} 5. Bd3 {[%clk 0:02:50.4]} 5...
g6 {[%clk 0:02:51.3]} 6. O-O {[%clk 0:02:41.2]} 6... Bg7 {[%clk 0:02:51.8]} 7.
Nc3 {[%clk 0:02:39.9]} 7... dxc4 {[%clk 0:02:51.4]} 8. Bxc4 {[%clk 0:02:38.4]}
8... O-O {[%clk 0:02:52.6]} 9. e4 {[%clk 0:02:15.8]} 9... Bg4 {[%clk 0:02:48.7]}
10. Be3 {[%clk 0:02:15.7]} 10... b5 {[%clk 0:02:46.2]} 11. Bd3 {[%clk
0:02:16.7]} 11... Ne8 {[%clk 0:02:35.7]} 12. e5 {[%clk 0:02:16]} 12... Nc7
{[%clk 0:02:31.1]} 13. h3 {[%clk 0:02:16.5]} 13... Be6 {[%clk 0:02:23.5]} 14.
Ne4 {[%clk 0:02:15.7]} 14... Bd5 {[%clk 0:02:20.9]} 15. b3 {[%clk 0:01:55.9]}
15... Ne6 {[%clk 0:02:15.8]} 16. Rc1 {[%clk 0:01:54.8]} 16... Nd7 {[%clk
0:02:15.4]} 17. Qe2 {[%clk 0:01:53]} 17... Rc8 {[%clk 0:02:10]} 18. Rc2 {[%clk
0:01:45]} 18... Nb6 {[%clk 0:01:42.3]} 19. Rfc1 {[%clk 0:01:43.3]} 19... Qd7
{[%clk 0:01:41.1]} 20. Qd2 {[%clk 0:01:15.5]} 20... Qb7 {[%clk 0:01:28.1]} 21.
Bh6 {[%clk 0:01:05]} 21... Nd7 {[%clk 0:01:26.2]} 22. Bxg7 {[%clk 0:01:04]}
22... Kxg7 {[%clk 0:01:25.3]} 23. Qe3 {[%clk 0:01:03.6]} 23... Rfd8 {[%clk
0:01:16.1]} 24. Nfg5 {[%clk 0:01:04.1]} 24... Ndf8 {[%clk 0:01:09.2]} 25. f4
{[%clk 0:00:58.3]} 25... Nxg5 {[%clk 0:01:08.8]} 26. Nxg5 {[%clk 0:00:59.3]}
26... Ne6 {[%clk 0:01:08.2]} 27. Nxe6+ {[%clk 0:00:42.9]} 27... Bxe6 {[%clk
0:01:01.2]} 28. Be4 {[%clk 0:00:36.4]} 28... Bd5 {[%clk 0:01:02.1]} 29. Rc5
{[%clk 0:00:36.3]} 29... e6 {[%clk 0:00:50.3]} 30. R1c3 {[%clk 0:00:29.8]} 30...
Bxe4 {[%clk 0:00:45.2]} 31. Qxe4 {[%clk 0:00:30.8]} 31... Rd5 {[%clk 0:00:45.8]}
32. Rxd5 {[%clk 0:00:31.5]} 32... cxd5 {[%clk 0:00:43.5]} 33. Qc2 {[%clk
0:00:33]} 33... Rxc3 {[%clk 0:00:40]} 34. Qxc3 {[%clk 0:00:34.9]} 34... Qb6
{[%clk 0:00:40.2]} 35. b4 {[%clk 0:00:33.1]} 35... h5 {[%clk 0:00:37.5]} 36. g3
{[%clk 0:00:32.5]} 36... Qb7 {[%clk 0:00:35.7]} 37. Qc5 {[%clk 0:00:32.7]} 37...
Kh7 {[%clk 0:00:31.9]} 38. Kg2 {[%clk 0:00:28.4]} 38... Kg7 {[%clk 0:00:32.5]}
39. g4 {[%clk 0:00:29.9]} 39... hxg4 {[%clk 0:00:32.9]} 40. hxg4 {[%clk
0:00:31.4]} 40... Qb8 {[%clk 0:00:32.8]} 41. f5 {[%clk 0:00:18.1]} 41... gxf5
{[%clk 0:00:32.9]} 42. gxf5 {[%clk 0:00:19.4]} 42... exf5 {[%clk 0:00:34.1]} 43.
Qxd5 {[%clk 0:00:20.2]} 43... Qc8 {[%clk 0:00:31.6]} 44. Qc5 {[%clk 0:00:19.4]}
44... Qe6 {[%clk 0:00:32.4]} 45. Qc2 {[%clk 0:00:15.2]} 45... Qd5+ {[%clk
0:00:27]} 46. Kg3 {[%clk 0:00:16.7]} 46... Qxd4 {[%clk 0:00:27.5]} 47. Qxf5
{[%clk 0:00:18]} 47... Qxb4 {[%clk 0:00:25.3]} 48. Qf6+ {[%clk 0:00:16.7]} 48...
Kg8 {[%clk 0:00:26.1]} 49. Qg5+ {[%clk 0:00:17.7]} 49... Kf8 {[%clk 0:00:26.3]}
50. Qd8+ {[%clk 0:00:18.9]} 50... Kg7 {[%clk 0:00:27.3]} 51. Qg5+ {[%clk
0:00:20]} 51... Kf8 {[%clk 0:00:27.7]} 52. Qd8+ {[%clk 0:00:21]} 52... Kg7
{[%clk 0:00:28.4]} 53. Qf6+ {[%clk 0:00:19]} 53... Kg8 {[%clk 0:00:25.2]} 54.
Qg5+ {[%clk 0:00:17.8]} 54... Kf8 {[%clk 0:00:25]} 55. Qh6+ {[%clk 0:00:13.1]}
55... Ke7 {[%clk 0:00:24.7]} 56. Qf6+ {[%clk 0:00:11.8]} 56... Kf8 {[%clk
0:00:25.4]} 57. Qxa6 {[%clk 0:00:11.5]} 57... Qc3+ {[%clk 0:00:25.4]} 58. Kf4
{[%clk 0:00:12.5]} 58... Qc4+ {[%clk 0:00:25.3]} 59. Kg5 {[%clk 0:00:11.5]}
59... Qd5 {[%clk 0:00:22.2]} 60. Qf6 {[%clk 0:00:07.2]} 60... Qg2+ {[%clk
0:00:21]} 61. Kf4 {[%clk 0:00:07.6]} 61... Qxa2 {[%clk 0:00:21.2]} 62. Qh8+
{[%clk 0:00:08.1]} 62... Ke7 {[%clk 0:00:22.2]} 63. Qf6+ {[%clk 0:00:09.7]}
63... Kf8 {[%clk 0:00:23.4]} 64. Qd6+ {[%clk 0:00:11.1]} 64... Kg7 {[%clk
0:00:24.3]} 65. Qf6+ {[%clk 0:00:11.7]} 65... Kf8 {[%clk 0:00:25.5]} 66. Qd8+
{[%clk 0:00:13]} 66... Kg7 {[%clk 0:00:26.5]} 67. Qg5+ {[%clk 0:00:14.3]} 67...
Kf8 {[%clk 0:00:27.4]} 68. Qh6+ {[%clk 0:00:14.4]} 68... Ke7 {[%clk 0:00:28]}
69. Qd6+ {[%clk 0:00:15.3]} 69... Ke8 {[%clk 0:00:28.5]} 70. Qc6+ {[%clk
0:00:16.8]} 70... Kf8 {[%clk 0:00:29.5]} 71. Qxb5 {[%clk 0:00:18.3]} 71... Qd2+
{[%clk 0:00:29.4]} 72. Ke4 {[%clk 0:00:19.2]} 72... Qg2+ {[%clk 0:00:29.6]} 73.
Kd4 {[%clk 0:00:19.8]} 73... Qf2+ {[%clk 0:00:30.6]} 74. Kd5 {[%clk 0:00:21]}
74... Qf3+ {[%clk 0:00:31.5]} 75. Kd6 {[%clk 0:00:21.6]} 75... Qd1+ {[%clk
0:00:31.4]} 76. Kc7 {[%clk 0:00:22.5]} 76... Qc2+ {[%clk 0:00:30.7]} 77. Kd8
{[%clk 0:00:23.7]} 77... Qd2+ {[%clk 0:00:31.1]} 78. Kc8 {[%clk 0:00:23.4]}
78... Qc3+ {[%clk 0:00:32.2]} 79. Kd7 {[%clk 0:00:24.4]} 79... Qd4+ {[%clk
0:00:32.5]} 80. Kc7 {[%clk 0:00:24.6]} 80... Qc3+ {[%clk 0:00:33]} 81. Kd6
{[%clk 0:00:25.8]} 81... Qd4+ {[%clk 0:00:33.9]} 82. Qd5 {[%clk 0:00:26.4]}
82... Qxd5+ {[%clk 0:00:34.8]} 83. Kxd5 {[%clk 0:00:28.3]} 83... Ke7 {[%clk
0:00:36.1]} 84. Ke4 {[%clk 0:00:29.6]} 84... f6 {[%clk 0:00:36.3]} 85. exf6+
{[%clk 0:00:30]} 85... Kxf6 {[%clk 0:00:37.5]} 1/2-1/2